[Event "SRB-chW Semifinal 2021"]
[Site "Paracin"]
[Date "2021.03.21"]
[Round "8.15"]
[White "Jurisic, Iskra"]
[Black "Djordjevic, Nevena"]
[Result "0-1"]
[ECO "A45"]
[WhiteElo "1713"]
[BlackElo "1999"]
[Annotator "NA"]
[PlyCount "108"]
[EventDate "2021.03.16"]
[EventType "swiss"]
[EventCountry "SRB"]
[SourceTitle "playchess.com"]
[Source "ChessBase"]
[SourceQuality "1"]
[TimeControl "40/5400+30:1800+30"]

1. d4 {[%emt 0:00:00]} Nf6 {[%emt 0:00:00]} 2. Nc3 {[%emt 0:00:14]} d5 {[%emt 0:03:56]} 3. Bf4 {[%emt 0:00:28]} Bf5 {[%emt 0:03:50]} 4. f3 {[%emt 0:01:04]} e6 {[%emt 0:05:24]} 5. g4 {[%emt 0:00:13]} Bg6 {[%emt 0:01:25]} 6. h4 {[%emt 0:00:25]} h5 {[%emt 0:01:25]} 7. g5 {[%emt 0:01:52]} Nfd7 {[%emt 0:15:52]} 8. e3 {[%emt 0:00:54]} Bd6 {[%emt 0:03:27]} 9. Bxd6 {[%emt 0:03:22]} cxd6 {[%emt 0:00:35]} 10. Bd3 {[%emt 0:01:25]} Bxd3 {[%emt 0:03:10]} 11. Qxd3 {[%emt 0:00:20]} g6 {[%emt 0:01:28]} 12. Nge2 {[%emt 0:02:01]} Nc6 {[%emt 0:02:29]} 13. a3 {[%emt 0:02:01]} a6 {[%emt 0:07:58]} 14. Nf4 {[%emt 0:03:13]} Ne7 {[%emt 0:04:07]} 15. e4 {[%emt 0:04:31]} dxe4 {[%emt 0:05:17]} 16. fxe4 {[%emt 0:01:16]} Qc7 {[%emt 0:03:18]} 17. Rf1 {[%emt 0:03:43]} O-O-O {[%emt 0:05:24]} 18. O-O-O {[%emt 0:09:14]} Nb6 {[%emt 0:01:56]} 19. d5 {[%emt 0:02:42]} e5 {[%emt 0:03:08]} 20. Nfe2 {[%emt 0:01:30]} Rhf8 {[%emt 0:01:38]} 21. Kb1 {[%emt 0:00:55]} Kb8 {[%emt 0:01:00]} 22. Nc1 {[%emt 0:01:38]} Nc4 {[%emt 0:04:44]} 23. N3a2 {[%emt 0:02:57]} Rc8 {[%emt 0:05:47]} 24. Rf3 {[%emt 0:01:33]} Ng8 {[%emt 0:04:13]} 25. Rdf1 {[%emt 0:02:17]} Qe7 {[%emt 0:05:05]} 26. Nb3 {[%emt 0:03:14]} f5 {[%emt 0:02:15]} 27. Nc3 {[%emt 0:03:26]} f4 {[%emt 0:00:56]} 28. Nd1 {[%emt 0:01:19]} Qd7 {[%emt 0:01:05]} 29. Rg1 {[%emt 0:00:57]} Ne7 {[%emt 0:00:11]} 30. Nd2 {[%emt 0:01:35]} Nxd2+ {[%emt 0:00:42]} 31. Qxd2 {[%emt 0:00:13]} Rc4 {[%emt 0:01:29]} 32. Qe2 {[%emt 0:03:14]} Rc7 {[%emt 0:01:08]} 33. Rb3 {[%emt 0:00:22]} Ka8 {[%emt 0:00:21]} 34. Qf3 {[%emt 0:01:40]} Nc8 {[%emt 0:00:29]} 35. Nc3 {[%emt 0:01:06]} Rc5 {[%emt 0:00:59]} 36. Rg2 {[%emt 0:01:27]} Ka7 {[%emt 0:00:57]} 37. Ka1 {[%emt 0:02:49]} Nb6 {[%emt 0:00:28]} 38. Kb1 {[%emt 0:01:00]} Nc4 {[%emt 0:00:23]} 39. Nd1 {[%emt 0:00:47]} Rfc8 {[%emt 0:00:23]} 40. Qd3 {[%emt 0:00:00]} Ka8 {[%emt 0:00:00]} 41. Ka1 {[%emt 0:05:36]} Na5 {[%emt 0:07:50]} 42. Rc3 {[%emt 0:01:15]} Rxc3 {[%emt 0:00:13]} 43. Nxc3 {[%emt 0:00:17]} Nc4 {[%emt 0:00:52]} 44. Rg1 {[%emt 0:03:02]} Ne3 {[%emt 0:07:09]} 45. Re1 {[%emt 0:03:04]} Qh3 {[%emt 0:02:09]} 46. Ka2 {[%emt 0:00:07]} Qxh4 {[%emt 0:02:16]} 47. Rxe3 {[%emt 0:00:24]} fxe3 {[%emt 0:00:07]} 48. Qxe3 {[%emt 0:00:03]} Qf4 {[%emt 0:02:19]} 49. Qb6 {[%emt 0:00:26]} Qf8 {[%emt 0:01:42]} 50. Qe3 {[%emt 0:01:01]} Qf1 {[%emt 0:02:04]} 51. Qb6 {[%emt 0:00:36]} Qc4+ {[%emt 0:00:35]} 52. Ka1 {[%emt 0:00:35]} Rf8 {[%emt 0:01:53]} 53. Qxd6 {[%emt 0:02:42]} Rf1+ {[%emt 0:00:06]} 54. Nb1 {[%emt 0:00:03]} Qxc2 {[%emt 0:00:16]} 0-1